lending/lending_fUSD_20250429
["ID","MTS","AMOUNT","RATE_DAILY","PERIOD"]
[359283461,1745891479328,-470.0,0.00028767,2]
[359283462,1745891479339,-470.0,0.00028767,2]
[359283463,1745891479349,-926.6,0.00028767,2]
[359283464,1745891479359,-470.0,0.00028767,2]
[359283465,1745891479368,-470.0,0.00028767,2]
[359283466,1745891479378,-55510.47,0.00028767,2]
[359283467,1745891479387,-470.0,0.00028767,2]
[359283468,1745891479396,-470.0,0.00028767,2]
[359283469,1745891479405,-470.0,0.00028767,2]
[359283470,1745891479415,-470.0,0.00028767,2]
[359283471,1745891479424,-470.0,0.00028767,2]
[359283472,1745891479433,-470.0,0.00028767,2]
[359283473,1745891479443,-470.0,0.00028767,2]
[359283474,1745891479453,-470.0,0.00028767,2]
[359283475,1745891479462,-1415.32,0.00028767,2]
[359283476,1745891479472,-414.31798929,0.00028767,2]
[359283477,1745891479481,-470.0,0.00028767,2]
[359283478,1745891479490,-470.0,0.00028767,2]
[359283479,1745891479500,-470.0,0.00028767,2]
[359283480,1745891479511,-618.86,0.00028767,2]
[359283481,1745891479521,-4571.21,0.00028767,2]
[359283482,1745891479531,-317.63646858,0.00028767,2]
[359283483,1745891479540,-470.0,0.00028767,2]
[359283484,1745891479551,-470.0,0.00028767,2]
[359283485,1745891479563,-1013.11,0.00028767,2]
[359283486,1745891479573,-250.0,0.00028767,2]
[359283487,1745891479583,-992.65,0.00028767,2]
[359283488,1745891479593,-470.0,0.00028767,2]
[359283489,1745891479602,-586.6,0.00028767,2]
[359283490,1745891479612,-1684.71,0.00028767,2]
[359283491,1745891479621,-470.0,0.00028767,2]
[359283492,1745891479631,-470.0,0.00028767,2]
[359283493,1745891479642,-178.856008,0.00028767,2]
[359283494,1745891479653,-470.0,0.00028767,2]
[359283495,1745891479663,-470.0,0.00028767,2]
[359283496,1745891479673,-14565.27,0.00028767,2]
[359283497,1745891479683,-470.0,0.00028767,2]
[359283498,1745891479695,-519.7455885,0.00028767,2]
[359283499,1745891479705,-470.0,0.00028767,2]
[359283500,1745891479716,-724.463176,0.00028767,2]
[359283501,1745891479726,-470.0,0.00028767,2]
[359283502,1745891479736,-470.0,0.00028767,2]
[359283503,1745891479747,-470.0,0.00028767,2]
[359283504,1745891479757,-470.0,0.00028767,2]
[359283505,1745891479767,-470.0,0.00028767,2]
[359283506,1745891479780,-470.0,0.00028767,2]
[359283507,1745891479790,-373.59819489,0.00028767,2]
[359283508,1745891479800,-499.1,0.00028767,2]
[359283509,1745891479810,-746.52,0.00028767,2]
[359283510,1745891479820,-470.0,0.00028767,2]
[359283511,1745891479830,-470.0,0.00028767,2]
[359283512,1745891479840,-560.29,0.00028767,2]
[359283513,1745891479850,-151.0,0.00028767,7]
[359283514,1745891479860,-470.0,0.00028767,2]
[359283515,1745891479870,-504.68,0.00028767,2]
[359283516,1745891479879,-470.0,0.00028767,2]
[359283517,1745891479888,-470.0,0.00028767,2]
[359283518,1745891479898,-558.42,0.00028767,2]
[359283519,1745891479907,-151.0,0.00028767,7]
[359283520,1745891479917,-470.0,0.00028767,2]
[359283521,1745891479927,-470.0,0.00028767,2]
[359283522,1745891479937,-5545.091631,0.00028767,2]
[359283523,1745891479946,-151.0,0.00028767,7]
[359283524,1745891479956,-470.0,0.00028767,2]
[359283525,1745891479965,-260.76620501,0.00028767,2]
[359283526,1745891479976,-1047.69,0.00028767,2]
[359283527,1745891479985,-300.0,0.00028767,2]
[359283528,1745891479994,-470.0,0.00028767,2]
[359283529,1745891480003,-470.0,0.00028767,2]
[359283530,1745891480012,-470.0,0.00028767,2]
[359283531,1745891480022,-472.85,0.00028767,2]
[359283532,1745891480031,-470.0,0.00028767,2]
[359283533,1745891480040,-470.0,0.00028767,2]
[359283534,1745891480050,-1132.811667,0.00028767,2]
[359283535,1745891480060,-470.0,0.00028767,2]
[359283536,1745891480070,-2265.36,0.00028767,2]
[359283537,1745891480080,-470.0,0.00028767,2]
[359283538,1745891480090,-483.38,0.00028767,2]
[359283539,1745891480100,-1175.89,0.00028767,2]
[359283540,1745891480111,-470.0,0.00028767,2]
[359283541,1745891480121,-470.0,0.00028767,2]
[359283542,1745891480131,-866.46,0.00028767,2]
[359283543,1745891480140,-588.59,0.00028767,2]
[359283544,1745891480150,-470.0,0.00028767,2]
[359283545,1745891480160,-470.0,0.00028767,2]
[359283546,1745891480169,-699.58,0.00028767,2]
[359283547,1745891480179,-470.0,0.00028767,2]
[359283548,1745891480189,-470.0,0.00028767,2]
[359283549,1745891480198,-470.0,0.00028767,2]
[359283550,1745891480208,-470.0,0.00028767,2]
[359283551,1745891480217,-540.83,0.00028767,2]
[359283552,1745891480227,-679.4,0.00028767,2]
[359283553,1745891480236,-470.0,0.00028767,2]
[359283554,1745891480246,-470.0,0.00028767,2]
[359283555,1745891480255,-477.45,0.00028767,2]
[359283556,1745891480265,-470.0,0.00028767,2]
[359283557,1745891480274,-470.0,0.00028767,2]
[359283558,1745891480284,-520.07,0.00028767,2]
[359283559,1745891480293,-866.58,0.00028767,2]
[359283560,1745891480303,-742.91,0.00028767,2]
[359283561,1745891480312,-470.0,0.00028767,2]
[359283562,1745891480321,-255.3535982,0.00028767,2]
[359283563,1745891481477,-307.26,0.0002673,2]
[359283564,1745891481487,-214.6464018,0.00028767,2]
[359283565,1745891481497,-470.0,0.00028767,2]
[359283566,1745891481506,-470.0,0.00028767,2]
[359283567,1745891481516,-470.0,0.00028767,2]
[359283568,1745891481525,-173.09183522,0.00028767,2]
[359283569,1745891481540,-296.90816478,0.00028767,2]
[359283570,1745891481549,-470.0,0.00028767,2]
[359283571,1745891481558,-470.0,0.00028767,2]
[359283572,1745891481567,-470.0,0.00028767,2]
[359283573,1745891481576,-470.0,0.00028767,2]
[359283574,1745891481587,-470.0,0.00028767,2]
[359283575,1745891481596,-470.0,0.00028767,2]
[359283576,1745891481605,-470.0,0.00028767,2]
[359283577,1745891481614,-470.0,0.00028767,2]
[359283578,1745891481623,-470.0,0.00028767,2]
[359283579,1745891481632,-673.27,0.00028767,2]
[359283580,1745891481641,-470.0,0.00028767,2]
[359283581,1745891481650,-1093.29,0.00028767,2]
[359283582,1745891481659,-415.2795977,0.00028767,2]
[359283583,1745891481670,-54.7204023,0.00028767,2]
[359283584,1745891481679,-488.64,0.00028767,2]
[359283585,1745891481689,-13.0293993,0.00028767,2]
[359283586,1745891481708,-456.9706007,0.00028767,2]
[359283587,1745891481717,-941.22,0.00028767,2]
[359283588,1745891481727,-522.04,0.00028767,2]
[359283589,1745891481736,-470.0,0.00028767,2]
[359283590,1745891481745,-470.0,0.00028767,2]
[359283591,1745891481755,-529.28,0.00028767,2]
[359283592,1745891481765,-197.1996222,0.00028767,2]
[359283593,1745891482214,-263.258183,0.00027397,2]
[359283594,1745891482225,-275.19107428,0.00027397,2]
[359283595,1745891482235,-272.8003778,0.00028767,2]
[359283596,1745891482244,-470.0,0.00028767,2]
[359283597,1745891482253,-1099.06,0.00028767,2]
[359283598,1745891482263,-470.0,0.00028767,2]
[359283599,1745891482273,-1006.54,0.00028767,2]
[359283600,1745891482283,-780.67,0.00028767,2]
[359283601,1745891482292,-298.67532579,0.00028767,2]
[359283602,1745891482304,-171.32467421,0.00028767,2]
[359283603,1745891482313,-319.23132153,0.00028767,2]
[359283604,1745891482323,-470.0,0.00028767,2]
[359283605,1745891482332,-470.0,0.00028767,2]
[359283606,1745891482343,-470.0,0.00028767,2]
[359283607,1745891482352,-470.0,0.00028767,2]
[359283608,1745891482361,-763.46,0.00028767,2]
[359283609,1745891482371,-503.03,0.00028767,2]
[359283610,1745891482380,-658.47,0.00028767,2]
[359283611,1745891482390,-470.0,0.00028767,2]
[359283612,1745891482399,-228.09914091,0.00028767,2]
[359283613,1745891482411,-241.90085909,0.00028767,2]
[359283614,1745891482420,-470.0,0.00028767,2]
[359283615,1745891482430,-80.0091737,0.00028767,2]
[359283616,1745891482442,-389.9908263,0.00028767,2]
[359283617,1745891482451,-500.0,0.00028767,2]
[359283618,1745891482461,-470.0,0.00028767,2]
[359283619,1745891482471,-470.0,0.00028767,2]
[359283620,1745891482480,-470.0,0.00028767,2]
[359283621,1745891482489,-509.6,0.00028767,2]
[359283622,1745891482499,-470.0,0.00028767,2]
[359283623,1745891482509,-470.0,0.00028767,2]
[359283624,1745891482519,-2398.53,0.00028767,2]
[359283625,1745891482528,-1318.81,0.00028767,2]
[359283626,1745891482537,-470.0,0.00028767,2]
[359283627,1745891482547,-574.52,0.00028767,2]
[359283628,1745891482556,-470.0,0.00028767,2]
[359283629,1745891482565,-561.78,0.00028767,2]
[359283630,1745891482575,-1126.5,0.00028767,2]
[359283631,1745891482585,-687.67,0.00028767,2]
[359283632,1745891482597,-541.16,0.00028767,2]
[359283633,1745891482608,-470.0,0.00028767,2]
[359283634,1745891482619,-1991.96,0.00028767,2]
[359283635,1745891482630,-470.0,0.00028767,2]
[359283636,1745891482641,-470.0,0.00028767,2]
[359283637,1745891482652,-470.0,0.00028767,2]
[359283638,1745891482662,-470.0,0.00028767,2]
[359283639,1745891482672,-515.09,0.00028767,2]
[359283640,1745891482682,-470.0,0.00028767,2]
[359283641,1745891482691,-470.0,0.00028767,2]
[359283642,1745891482701,-470.0,0.00028767,2]
[359283643,1745891482711,-470.0,0.00028767,2]
[359283644,1745891482721,-470.0,0.00028767,2]
[359283645,1745891482730,-939.33,0.00028767,2]
[359283646,1745891482740,-151.0,0.00028767,7]
[359283647,1745891482749,-498.44,0.00028767,2]
[359283648,1745891482758,-530.34,0.00028767,2]
[359283649,1745891482768,-9495.93,0.00028767,2]
[359283650,1745891482780,-470.0,0.00028767,2]
[359283651,1745891482790,-470.0,0.00028767,2]
[359283652,1745891482800,-470.0,0.00028767,2]
[359283653,1745891482811,-470.0,0.00028767,2]
[359283654,1745891482822,-499.51,0.00028767,2]
[359283655,1745891482832,-470.0,0.00028767,2]
[359283656,1745891482843,-698.61,0.00028767,2]
[359283657,1745891482855,-470.0,0.00028767,2]
[359283658,1745891482864,-6840.16,0.00028767,2]
[359283659,1745891482874,-530.96943444,0.00028767,2]
[359283660,1745891482885,-470.0,0.00028767,2]
[359283661,1745891482895,-470.0,0.00028767,2]
[359283662,1745891482904,-1529.65,0.00028767,2]
[359283663,1745891482914,-298.45938319,0.00028767,2]
[359283664,1745891482924,-470.0,0.00028767,2]
[359283665,1745891482933,-470.0,0.00028767,2]
[359283666,1745891482942,-534.45,0.00028767,2]
[359283667,1745891482952,-470.0,0.00028767,2]
[359283668,1745891482961,-470.0,0.00028767,2]
[359283669,1745891482971,-470.0,0.00028767,2]
[359283670,1745891482980,-470.0,0.00028767,2]
[359283671,1745891482989,-523.02,0.00028767,2]
[359283672,1745891482999,-470.0,0.00028767,2]
[359283673,1745891483008,-470.0,0.00028767,2]
[359283674,1745891483018,-470.0,0.00028767,2]
[359283675,1745891483028,-470.0,0.00028767,2]
[359283676,1745891483037,-705.97,0.00028767,2]
[359283677,1745891483047,-470.0,0.00028767,2]
[359283678,1745891483057,-427.92060642,0.00028767,2]
[359283679,1745891483066,-470.0,0.00028767,2]
[359283680,1745891483075,-470.0,0.00028767,2]
[359283681,1745891483086,-625.13,0.00028767,2]
[359283682,1745891483096,-470.0,0.00028767,2]
[359283683,1745891483105,-152.476605,0.00028767,7]
[359283684,1745891483115,-470.0,0.00028767,2]
[359283685,1745891483125,-470.0,0.00028767,2]
[359283686,1745891483298,-554.64,0.00028767,2]
[359283687,1745891483308,-152.476605,0.00028767,7]
[359283688,1745891483320,-470.0,0.00028767,2]
[359283689,1745891483331,-470.0,0.00028767,2]
[359283690,1745891483343,-253.68163498,0.00028835,2]
[359283691,1745891483353,-150.0,0.00028839,2]
[359283692,1745891483363,-1680.0,0.00028841,2]
[359283693,1745891483373,-5083.00938538,0.00028866,8]
[359283694,1745891483393,-470.0,0.00027397,2]
[359283695,1745891483403,-1490.42905445,0.00028866,8]
[359283696,1745891483414,-216.88658045,0.00028954,2]
[359283697,1745891483426,-1582.82699361,0.00029001,2]
[359283698,1745891483438,-1484.73048015,0.00029001,2]
[359283699,1745891483452,-527.65214531,0.00029001,2]
[359283700,1745891483463,-5714.3562124,0.00029001,2]
[359283701,1745891483472,-470.0,0.00029039,2]
[359283702,1745891483482,-500.0,0.00029039,2]
[359283703,1745891483494,-1129.56,0.00029039,2]
[359283704,1745891483505,-470.0,0.00029039,2]
[359283705,1745891483515,-905.59,0.00029039,2]
[359283706,1745891483524,-477.97,0.00029039,2]
[359283707,1745891483534,-151.0,0.00029039,7]
[359283708,1745891483543,-470.0,0.00029039,2]
[359283709,1745891483552,-849.57,0.00029039,2]
[359283710,1745891483562,-426.13462647,0.00029039,2]
[359283711,1745891483573,-150.38537353,0.00029039,2]
[359283712,1745891483582,-152.476605,0.00029039,7]
[359283713,1745891483593,-152.476605,0.00029039,7]
[359283714,1745891483602,-230.2387592,0.00029039,2]
[359283715,1745891483612,-398.08210472,0.00029039,2]
[359283716,1745891483629,-470.0,0.00027397,2]
[359283717,1745891483640,-645195.49880576,0.00029039,2]
[359283718,1745891483652,-665.238,0.00029039,2]
[359283719,1745891483664,-500.0,0.00029039,2]
[359283720,1745891483685,-309.20075418,0.00027671,2]
[359283721,1745891483698,-160.79924582,0.00027671,2]
[359283722,1745891483708,-763.65075422,0.00029039,2]
[359283723,1745891483720,-286.09295247,0.00029039,2]
[359283724,1745891483735,-552.44177757,0.00029039,2]
[359283725,1745891594378,155.0,0.00038356,30]
[359283726,1745891607367,150.0,0.000383,35]
[359283727,1745891657062,218.68,0.00026842,120]
[359283729,1745891696496,195.50821864,0.000372,120]
[359283734,1745891824608,250.0,0.00017,2]
[359283735,1745891825743,300.0,0.00019,2]
[359283736,1745891910015,334.822,0.00035605,42]
[359283737,1745891957385,1256.89588032,0.00038356,30]
[359283740,1745892180223,2000.0,0.00038356,30]
[359283742,1745892401654,1500.0,0.00038356,30]
[359283751,1745892557338,470.0,0.00038356,30]
[359283752,1745892558020,1012.31,0.00038356,30]
[359283753,1745892558288,478.15,0.00038356,30]
[359283754,1745892560390,470.0,0.00038356,30]
[359283755,1745892561650,1286.67,0.00038356,30]
[359283756,1745892561833,470.0,0.00038356,30]
[359283757,1745892562393,470.0,0.00038356,30]
[359283758,1745892562679,470.0,0.00038356,30]
[359283759,1745892563256,440.66919659,0.00038356,30]
[359283760,1745892563286,1054.74,0.00038356,30]
[359283761,1745892565881,470.0,0.00038356,30]
[359283762,1745892566791,561.07,0.00038356,30]
[359283763,1745892570532,470.0,0.00038356,30]
[359283764,1745892571311,470.0,0.00038356,30]
[359283765,1745892571416,3316.21,0.00038356,30]
[359283766,1745892574322,760.3,0.00038356,30]
[359283767,1745892574929,470.0,0.00038356,30]
[359283768,1745892575994,470.0,0.00038356,30]
[359283769,1745892577219,470.0,0.00038356,30]
[359283770,1745892577699,3069.67,0.00038356,30]
[359283771,1745892577862,470.0,0.00038356,30]
[359283772,1745892579353,470.0,0.00038356,30]
[359283773,1745892579831,470.0,0.00038356,30]
[359283774,1745892581559,470.0,0.00038356,30]
[359283775,1745892582335,546.25,0.00038356,30]
[359283776,1745892583209,470.0,0.00038356,30]
[359283777,1745892584137,470.0,0.00038356,30]
[359283778,1745892584610,502.71,0.00038356,30]
[359283779,1745892584967,470.0,0.00038356,30]
[359283780,1745892585100,569.17941539,0.00038356,30]
[359283781,1745892589376,691.38,0.00038356,30]
[359283782,1745892589710,470.0,0.00038356,30]
[359283783,1745892590495,470.0,0.00038356,30]
[359283784,1745892592512,470.0,0.00038356,30]
[359283785,1745892592826,470.0,0.00038356,30]
[359283786,1745892592900,470.0,0.00038356,30]
[359283787,1745892593250,470.0,0.00038356,30]
[359283788,1745892593625,7121.94,0.00038356,30]
[359283789,1745892593975,470.0,0.00038356,30]
[359283790,1745892594511,638.89,0.00038356,30]
[359283791,1745892594792,1749.05,0.00038356,30]
[359283792,1745892598890,470.0,0.00038356,30]
[359283793,1745892601725,470.0,0.00038356,30]
[359283794,1745892601787,470.0,0.00038356,30]
[359283795,1745892602906,1135.2,0.00038356,30]
[359283796,1745892603841,470.0,0.00038356,30]
[359283797,1745892604344,470.0,0.00038356,30]
[359283798,1745892605523,470.0,0.00038356,30]
[359283799,1745892606407,470.0,0.00038356,30]
[359283800,1745892608005,470.0,0.00038356,30]
[359283801,1745892608934,921.94,0.00038356,30]
[359283802,1745892611056,470.0,0.00038356,30]
[359283803,1745892613711,470.0,0.00038356,30]
[359283804,1745892613750,470.0,0.00038356,30]
[359283805,1745892614557,470.0,0.00038356,30]
[359283806,1745892614608,470.0,0.00038356,30]
[359283807,1745892617051,1274.71,0.00038356,30]
[359283808,1745892617996,934.19,0.00038356,30]
[359283809,1745892618669,588.76,0.00038356,30]
[359283810,1745892620597,2278.07,0.00038356,30]
[359283811,1745892621727,470.0,0.00038356,30]
[359283812,1745892621826,470.0,0.00038356,30]
[359283813,1745892622127,470.0,0.00038356,30]
[359283814,1745892622341,588.31,0.00038356,30]
[359283815,1745892622484,470.0,0.00038356,30]
[359283816,1745892623983,470.0,0.00038356,30]
[359283817,1745892624114,470.0,0.00038356,30]
[359283818,1745892624360,540.3,0.00038356,30]
[359283819,1745892625747,470.0,0.00038356,30]
[359283820,1745892625794,536.59,0.00038356,30]
[359283821,1745892625884,470.0,0.00038356,30]
[359283822,1745892627300,470.0,0.00038356,30]
[359283823,1745892628705,470.0,0.00038356,30]
[359283824,1745892629167,470.0,0.00038356,30]
[359283825,1745892629430,470.0,0.00038356,30]
[359283826,1745892630594,470.0,0.00038356,30]
[359283827,1745892631160,470.0,0.00038356,30]
[359283852,1745892631417,-350.0,0.00021,2]
[359283854,1745892631426,-20.04022624,0.00021162,2]
[359283856,1745892631437,-198.64977376,0.00021162,2]
[359283858,1745892631447,-400.0,0.00023,2]
[359283860,1745892631456,-946.59,0.00024055,2]
[359283862,1745892631465,-450.0,0.00025,2]
[359283864,1745892631475,-153.47778554,0.00025126,2]
[359283866,1745892631484,-175.82623374,0.00025869,2]
[359283868,1745892631493,-2230.94,0.00025969,2]
[359283870,1745892631503,-240.79,0.00026065,2]
[359283872,1745892631513,-250.0,0.00026262,2]
[359283874,1745892631522,-946.59,0.00026319,2]
[359283876,1745892631531,-1142.08,0.0002633,2]
[359283878,1745892631541,-250.0,0.00026335,7]
[359283880,1745892631550,-1000.0,0.00026374,2]
[359283881,1745892631559,-1200.0,0.00026604,2]
[359283882,1745892631569,-300.0,0.00026606,2]
[359283883,1745892631578,-300.0,0.00026606,2]
[359283884,1745892631587,-23900.0,0.00026607,2]
[359283885,1745892631596,-5119.08,0.00026607,2]
[359283887,1745892631605,-429.58,0.00026669,2]
[359283889,1745892631615,-200.0,0.00026669,2]
[359283891,1745892631624,-296.3,0.00026692,2]
[359283892,1745892631634,-1119.89,0.00026713,2]
[359283893,1745892631643,-158.0,0.00026735,2]
[359283894,1745892631652,-954.31,0.00026748,2]
[359283895,1745892631662,-213.44,0.00026748,2]
[359283896,1745892631671,-4937.38265054,0.000269,7]
[359283897,1745892631680,-289.37,0.00026905,2]
[359283898,1745892631690,-500.0,0.00027,2]
[359283899,1745892631699,-160.6,0.0002705,2]
[359283900,1745892631709,-200.0,0.00027193,2]
[359283901,1745892631719,-1000.0,0.00027193,2]
[359283902,1745892631728,-150.0,0.00027193,2]
[359283903,1745892631737,-175.82623374,0.00027287,2]
[359283904,1745892631747,-520.64703791,0.00027297,2]
[359283905,1745892631756,-402.78307996,0.00027297,2]
[359283906,1745892631766,-590.36103719,0.00027297,2]
[359283907,1745892631775,-1718.14356686,0.00027377,2]
[359283908,1745892631785,-55416.46927652,0.00027387,2]
[359283914,1745892632233,733.56,0.00038356,30]
[359283915,1745892633684,470.0,0.00038356,30]
[359283916,1745892634269,470.0,0.00038356,30]
[359283917,1745892635384,470.0,0.00038356,30]
[359283918,1745892636227,-1459.70783706,0.00027387,2]
[359283919,1745892636242,-3600.31522789,0.00027387,2]
[359283920,1745892636333,-6704.23973493,0.00027387,2]
[359283921,1745892636343,-161.88,0.00027387,2]
[359283922,1745892636353,-1506.25,0.00027387,2]
[359283923,1745892636362,-552.28,0.00027387,3]
[359283924,1745892636372,-500.0,0.00027396,2]
[359283925,1745892636381,-203.12642407,0.00027396,2]
[359283926,1745892636391,-924.0,0.00027397,2]
[359283927,1745892636407,-167.03039117,0.00027397,2]
[359283928,1745892636417,-470.0,0.00027397,2]
[359283929,1745892636427,-470.0,0.00027397,2]
[359283930,1745892636437,-470.0,0.00027397,2]
[359283931,1745892636446,-470.0,0.00027397,2]
[359283932,1745892636456,-470.0,0.00027397,2]
[359283933,1745892636465,-221.93268769,0.00027397,2]
[359283934,1745892636475,-470.0,0.00027397,2]
[359283935,1745892636484,-470.0,0.00027397,2]
[359283936,1745892636494,-470.0,0.00027397,2]
[359283938,1745892636503,-470.0,0.00027397,2]
[359283940,1745892636513,-470.0,0.00027397,2]
[359283942,1745892636522,-470.0,0.00027397,2]
[359283943,1745892636532,-470.0,0.00027397,2]
[359283944,1745892636541,-209.34924186,0.00027397,2]
[359283945,1745892636552,-470.0,0.00027397,2]
[359283946,1745892636562,-470.0,0.00027397,2]
[359283947,1745892636572,-470.0,0.00027397,2]
[359283948,1745892636582,-470.0,0.00027397,2]
[359283949,1745892636591,-470.0,0.00027397,2]
[359283950,1745892636601,-470.0,0.00027397,2]
[359283952,1745892636610,-470.0,0.00027397,2]
[359283955,1745892636620,-470.0,0.00027397,2]
[359283956,1745892636630,-470.0,0.00027397,2]
[359283959,1745892636639,-470.0,0.00027397,2]
[359283961,1745892636649,-470.0,0.00027397,2]
[359283963,1745892636659,-470.0,0.00027397,2]
[359283965,1745892636668,-470.0,0.00027397,2]
[359283967,1745892636678,-470.0,0.00027397,2]
[359283969,1745892636687,-470.0,0.00027397,2]
[359283971,1745892636697,-470.0,0.00027397,2]
[359283973,1745892636706,-470.0,0.00027397,2]
[359283975,1745892636715,-569.85819969,0.00027397,2]
[359283977,1745892636726,-470.0,0.00027397,2]
[359283980,1745892636735,-470.0,0.00027397,2]
[359283982,1745892636745,-470.0,0.00027397,2]
[359283984,1745892636754,-470.0,0.00027397,2]
[359283986,1745892636763,-470.0,0.00027397,2]
[359283988,1745892636772,-470.0,0.00027397,2]
[359283990,1745892636782,-470.0,0.00027397,2]
[359283992,1745892636791,-470.0,0.00027397,2]
[359283994,1745892636800,-470.0,0.00027397,2]
[359283996,1745892636809,-470.0,0.00027397,2]
[359283998,1745892636818,-470.0,0.00027397,2]
[359284000,1745892636828,-470.0,0.00027397,2]
[359284002,1745892636837,-470.0,0.00027397,2]
[359284004,1745892636846,-434.13352987,0.00027397,2]
[359284006,1745892636855,-441.86458168,0.00027397,2]
[359284008,1745892636864,-470.0,0.00027397,2]
[359284010,1745892636874,-470.0,0.00027397,2]
[359284012,1745892636883,-470.0,0.00027397,2]
[359284014,1745892636892,-470.0,0.00027397,2]
[359284016,1745892636901,-470.0,0.00027397,2]
[359284018,1745892636910,-470.0,0.00027397,2]
[359284020,1745892636920,-470.0,0.00027397,2]
[359284022,1745892636929,-536.98,0.00027397,2]
[359284024,1745892636939,-702.4,0.00027397,2]
[359284026,1745892636948,-470.0,0.00027397,2]
[359284028,1745892636957,-470.0,0.00027397,2]
[359284030,1745892636966,-470.0,0.00027397,2]
[359284032,1745892636975,-470.0,0.00027397,2]
[359284034,1745892636984,-470.0,0.00027397,2]
[359284036,1745892636994,-470.0,0.00027397,2]
[359284038,1745892637003,-470.0,0.00027397,2]
[359284040,1745892637012,-579.73,0.00027397,2]
[359284042,1745892637022,-1322.15,0.00027397,2]
[359284044,1745892637031,-470.0,0.00027397,2]
[359284046,1745892637041,-470.0,0.00027397,2]
[359284048,1745892637052,-470.0,0.00027397,2]
[359284050,1745892637062,-470.0,0.00027397,2]
[359284052,1745892637072,-470.0,0.00027397,2]
[359284054,1745892637085,-470.0,0.00027397,2]
[359284057,1745892637095,-470.0,0.00027397,2]
[359284059,1745892637105,-470.0,0.00027397,2]
[359284061,1745892637115,-470.0,0.00027397,2]
[359284063,1745892637126,-470.0,0.00027397,2]
[359284065,1745892637136,-470.0,0.00027397,2]
[359284067,1745892637145,-470.0,0.00027397,2]
[359284080,1745892637359,-470.0,0.00027397,2]
[359284081,1745892637371,-642.9,0.00027397,2]
[359284082,1745892637381,-470.0,0.00027397,2]
[359284083,1745892637392,-470.0,0.00027397,2]
[359284084,1745892637401,-470.0,0.00027397,2]
[359284085,1745892637411,-470.0,0.00027397,2]
[359284086,1745892637421,-470.0,0.00027397,2]
[359284087,1745892637431,-470.0,0.00027397,2]
[359284088,1745892637441,-470.0,0.00027397,2]
[359284089,1745892637451,-519.7455885,0.00027397,2]
[359284090,1745892637461,-550.92,0.00027397,2]
[359284091,1745892637470,-686.37,0.00027397,2]
[359284092,1745892637481,-470.0,0.00027397,2]
[359284093,1745892637492,-470.0,0.00027397,2]
[359284094,1745892637502,-470.0,0.00027397,2]
[359284095,1745892637512,-470.0,0.00027397,2]
[359284096,1745892637521,-470.0,0.00027397,2]
[359284097,1745892637531,-470.0,0.00027397,2]